bitfinex/quotes_BTCUSD_20250922
["timestamp","ask_amount","ask_price","bid_price","bid_amount"]
[1758508174755,0.01117475,114740.0,114730.0,0.31093666]
[1758508176687,0.01118683,114740.0,114730.0,0.31093666]
[1758508176901,0.18549395,114740.0,114730.0,0.00404]
[1758508177112,0.64244202,114740.0,114730.0,0.002]
[1758508177531,0.22100279,114740.0,114730.0,0.002]
[1758508177743,0.64244202,114740.0,114730.0,0.002]
[1758508177948,0.22100279,114740.0,114730.0,0.002]
[1758508178604,0.56632279,114740.0,114730.0,0.17632232]
[1758508178781,0.56632279,114740.0,114730.0,0.24155716]
[1758508179087,0.56632279,114740.0,114730.0,0.06723484]
[1758508179463,0.56632279,114740.0,114730.0,0.24155716]
[1758508180033,0.53390395,114740.0,114730.0,0.24155716]
[1758508180686,0.52929395,114740.0,114730.0,0.24359716]
[1758508180893,0.52929395,114740.0,114730.0,0.24155716]
[1758508181098,0.53238395,114740.0,114730.0,0.24155716]
[1758508182352,0.53238395,114740.0,114730.0,0.002]
[1758508182353,0.97811318,114740.0,114730.0,0.002]
[1758508182568,0.98623929,114740.0,114730.0,0.002]
[1758508182789,0.90480006,114740.0,114730.0,0.002]
[1758508182993,1.2473546,114740.0,114730.0,0.002]
[1758508183607,0.17434748,114720.0,114700.0,0.18303318]
[1758508183830,0.34529,114710.0,114700.0,0.30871857]
[1758508184033,0.35138683,114710.0,114700.0,0.33203857]
[1758508184659,0.35110683,114710.0,114700.0,0.33203857]
[1758508184863,0.35110683,114710.0,114700.0,0.33217965]
[1758508185070,0.00818683,114710.0,114700.0,0.33217965]
[1758508185285,0.35090683,114710.0,114700.0,0.33217965]
[1758508185494,0.00818683,114710.0,114700.0,0.33217965]
[1758508185705,0.35070683,114710.0,114700.0,0.33217965]
[1758508185917,0.00609683,114710.0,114700.0,1.39281063]
[1758508186120,0.09724,114740.0,114730.0,0.17432232]
[1758508186338,0.44589034,114740.0,114730.0,0.2091883]
[1758508186551,0.44589034,114740.0,114730.0,0.2112283]
[1758508186759,0.44798034,114740.0,114730.0,0.2345483]
[1758508187348,0.44898034,114740.0,114730.0,0.2345483]
[1758508187563,0.44914034,114740.0,114730.0,0.2345483]
[1758508187776,0.44814034,114740.0,114730.0,0.2345483]
[1758508188189,0.44746034,114740.0,114730.0,0.2365483]
[1758508189035,0.62485746,114740.0,114730.0,0.2111883]
[1758508190809,0.45055034,114740.0,114730.0,0.2111883]
[1758508190983,0.10851034,114740.0,114730.0,0.2111883]
[1758508191194,0.45039034,114740.0,114730.0,0.2111883]
[1758508191644,0.44662034,114740.0,114730.0,0.2132283]
[1758508191849,0.44638034,114740.0,114730.0,0.2365483]
[1758508192102,0.10542034,114740.0,114730.0,0.2365483]
[1758508192332,0.44421034,114740.0,114730.0,0.2365483]
[1758508192504,0.44351034,114740.0,114730.0,0.2365483]
[1758508193667,0.44560034,114740.0,114730.0,0.2365483]
[1758508193900,0.61990746,114740.0,114730.0,0.2132283]
[1758508194110,0.61990746,114740.0,114730.0,0.2111883]
[1758508194436,0.44560034,114740.0,114730.0,0.2132283]
[1758508194647,0.44560034,114740.0,114730.0,0.2365483]
[1758508195066,0.10472034,114740.0,114730.0,0.2365483]
[1758508195267,0.44492034,114740.0,114730.0,0.2365483]
[1758508196265,0.44400034,114740.0,114730.0,0.2365483]
[1758508196556,0.10472034,114740.0,114730.0,0.2365483]
[1758508196727,0.44400034,114740.0,114730.0,0.2365483]
[1758508196932,0.00839034,114740.0,114730.0,0.66877251]
[1758508197207,0.34755034,114740.0,114730.0,0.66877251]
[1758508198147,0.34964034,114740.0,114730.0,0.32303797]
[1758508200653,0.52715746,114740.0,114730.0,0.2111883]
[1758508200873,0.55102746,114740.0,114730.0,0.03686598]
[1758508201093,0.987822,114740.0,114730.0,0.03686598]
[1758508201395,0.64526746,114740.0,114730.0,0.03686598]
[1758508201605,0.987822,114740.0,114730.0,0.002]
[1758508202234,0.94526746,114740.0,114730.0,0.002]
[1758508202486,1.287822,114740.0,114730.0,0.002]
[1758508202702,0.47433282,114730.0,114710.0,0.18304565]
[1758508202917,0.34013,114720.0,114710.0,0.22627721]
[1758508203185,0.34943034,114720.0,114710.0,0.22627721]
[1758508203721,0.34393034,114720.0,114710.0,0.25607721]
[1758508203939,0.34610034,114720.0,114710.0,0.25289721]
[1758508205419,0.34612069,114720.0,114710.0,0.22835721]
[1758508206031,0.34612068,114720.0,114710.0,0.25289721]
[1758508206234,0.34612068,114720.0,114710.0,0.25489721]
[1758508206446,0.34001,114720.0,114710.0,0.25489721]
[1758508206623,0.50140236,114730.0,114720.0,0.17433751]
[1758508206854,0.84431292,114730.0,114720.0,0.21726098]
[1758508207059,0.84648288,114730.0,114720.0,0.21726098]
[1758508207271,0.33536056,114730.0,114720.0,0.21726098]
[1758508207477,0.37196056,114730.0,114720.0,0.21726098]
[1758508207904,0.00611056,114730.0,114720.0,0.21934098]
[1758508208123,0.2801701,114740.0,114730.0,0.17432232]
[1758508208334,0.2801701,114740.0,114730.0,0.21646065]
[1758508208335,0.6187001,114740.0,114730.0,0.21646065]
[1758508208761,0.17432232,114730.0,114720.0,0.04292347]
[1758508208950,0.85006758,114730.0,114710.0,0.22629978]
[1758508209208,0.36585,114720.0,114710.0,0.22629978]
[1758508209423,0.34198,114720.0,114710.0,0.22629978]
[1758508209834,0.51631751,114720.0,114710.0,0.22629978]
[1758508210051,0.34198,114720.0,114710.0,0.22629978]
[1758508210273,0.34198,114720.0,114710.0,0.22829978]
[1758508210484,0.34198,114720.0,114710.0,0.22629978]
[1758508211314,0.33877,114720.0,114710.0,0.23029978]
[1758508211521,0.34179,114720.0,114710.0,0.22829978]
[1758508211726,0.51612751,114720.0,114710.0,0.2283019]
[1758508211937,0.85868205,114720.0,114710.0,0.002]
[1758508212147,0.88255205,114720.0,114710.0,0.002]
[1758508212356,0.88866094,114720.0,114710.0,0.002]
[1758508212561,0.5461064,114720.0,114710.0,0.002]
[1758508212770,0.88866094,114720.0,114710.0,0.002]
[1758508213386,0.5461064,114720.0,114710.0,0.002]
[1758508213590,0.88866094,114720.0,114710.0,0.002]
[1758508214419,0.5461064,114720.0,114710.0,0.002]
[1758508217912,0.88866094,114720.0,114710.0,0.002]
[1758508218113,0.88606094,114720.0,114710.0,0.002]
[1758508219467,0.5435064,114720.0,114710.0,0.002]
[1758508220636,0.88606094,114720.0,114710.0,0.002]
[1758508221560,1.22606094,114720.0,114710.0,0.002]
[1758508222024,2.20322094,114720.0,114710.0,0.002]
[1758508222233,2.21948545,114720.0,114710.0,0.002]
[1758508222868,0.81435271,114710.0,114700.0,0.00014108]
[1758508223081,0.9147416,114710.0,114700.0,0.00014108]
[1758508223293,0.60147271,114710.0,114700.0,0.37254562]
[1758508223500,0.17435271,114710.0,114700.0,0.08468382]
[1758508223716,0.50747271,114710.0,114700.0,0.54373353]
[1758508223928,0.33332,114710.0,114700.0,0.54691353]
[1758508224181,0.50965751,114720.0,114700.0,0.54691353]
[1758508224386,0.50965751,114720.0,114710.0,0.17435271]
[1758508224593,0.17433751,114720.0,114710.0,0.20420271]
[1758508224802,0.51311751,114720.0,114710.0,0.03787117]
[1758508225018,0.47435271,114710.0,114700.0,0.00014108]
[1758508225228,0.47435271,114710.0,114700.0,0.02481108]
[1758508225436,0.47435271,114710.0,114700.0,0.20117899]
[1758508225660,0.81031271,114710.0,114700.0,0.00014108]
[1758508225861,0.81333271,114710.0,114700.0,0.00014108]
[1758508226066,0.81333271,114710.0,114700.0,0.17450899]
[1758508226281,0.81031271,114710.0,114700.0,0.20117899]
[1758508226492,0.81031271,114710.0,114700.0,0.02681108]
[1758508226709,0.81333271,114710.0,114700.0,0.02681108]
[1758508226959,0.81333271,114710.0,114700.0,0.00214108]
[1758508227169,0.81031271,114710.0,114700.0,0.00428108]
[1758508227410,0.81031271,114710.0,114700.0,0.02863108]
[1758508227615,0.81031271,114710.0,114700.0,0.25787381]
[1758508228045,0.80943271,114710.0,114700.0,0.25787381]
[1758508228256,0.80943271,114710.0,114700.0,0.0835059]
[1758508228257,0.80939271,114710.0,114700.0,0.0835059]
[1758508228684,0.81243271,114710.0,114700.0,0.0570159]
[1758508228897,0.81243271,114710.0,114700.0,0.00214108]
[1758508229670,0.83658271,114710.0,114700.0,0.00214108]
[1758508231383,0.50358271,114710.0,114700.0,0.00214108]
[1758508231627,0.81163271,114710.0,114700.0,0.00214108]
[1758508232173,0.47943271,114710.0,114700.0,0.00214108]
[1758508232443,0.81143271,114710.0,114700.0,0.00428108]
[1758508232703,0.83558271,114710.0,114700.0,0.00214108]
[1758508232972,1.17813725,114710.0,114700.0,0.00214108]
[1758508233227,0.83558271,114710.0,114700.0,0.00214108]
[1758508233709,0.84565581,114710.0,114700.0,0.00214108]
[1758508233929,1.20160581,114710.0,114700.0,0.00214108]
[1758508234164,1.20184581,114710.0,114700.0,0.00214108]
[1758508234413,1.20795064,114710.0,114700.0,0.00214108]
[1758508234645,1.20795064,114710.0,114700.0,0.00014108]
[1758508234903,1.20895064,114710.0,114700.0,0.00014108]
[1758508235972,0.90895064,114710.0,114700.0,0.00014108]
[1758508236230,1.55150518,114710.0,114700.0,0.00014108]
[1758508237551,1.85150518,114710.0,114700.0,0.00014108]
[1758508237799,1.87591795,114710.0,114700.0,0.00014108]
[1758508238546,2.25311795,114710.0,114700.0,0.00014108]
[1758508238762,7.45390636,114710.0,114700.0,1e-08]
[1758508239007,7.7700801,114710.0,114700.0,1e-08]
[1758508239252,7.73772905,114710.0,114700.0,1e-08]
[1758508239464,7.73672905,114710.0,114700.0,1e-08]
[1758508239680,7.40588905,114710.0,114700.0,1e-08]
[1758508239890,7.73652905,114710.0,114700.0,1e-08]
[1758508240096,7.40588905,114710.0,114700.0,1e-08]
[1758508240317,7.73644905,114710.0,114700.0,1e-08]
[1758508240951,4.21633451,114710.0,114700.0,1e-08]
[1758508241159,4.75520905,114710.0,114700.0,1e-08]
[1758508241365,2.23633451,114710.0,114700.0,1e-08]
[1758508241570,2.32688905,114710.0,114700.0,1e-08]
[1758508241780,2.36453451,114710.0,114700.0,1e-08]
[1758508241990,2.71308905,114710.0,114700.0,1e-08]
[1758508242411,2.34957451,114710.0,114700.0,1e-08]
[1758508242622,2.78282284,114710.0,114700.0,1e-08]
[1758508243028,2.78782284,114710.0,114700.0,1e-08]
[1758508243231,2.36657451,114710.0,114700.0,1e-08]
[1758508243396,2.78758284,114710.0,114700.0,1e-08]
[1758508243859,2.45758284,114710.0,114700.0,1e-08]
[1758508244065,1.90637341,114710.0,114700.0,1e-08]
[1758508244272,1.90641341,114710.0,114700.0,1e-08]
[1758508244480,2.35181174,114710.0,114700.0,1e-08]
[1758508244916,2.33381174,114710.0,114700.0,1e-08]
[1758508245092,2.32881174,114710.0,114700.0,1e-08]
[1758508245293,2.33581174,114710.0,114700.0,1e-08]
[1758508245493,2.33781174,114710.0,114700.0,1e-08]
[1758508245707,7.46796364,114710.0,114700.0,1e-08]
[1758508245919,6.13172364,114710.0,114700.0,1e-08]
[1758508246134,6.46216364,114710.0,114700.0,1e-08]
[1758508246538,6.02632364,114710.0,114700.0,1e-08]
[1758508246737,3.24160364,114710.0,114700.0,1e-08]
[1758508246965,2.08792364,114710.0,114700.0,1e-08]
[1758508247137,2.41816364,114710.0,114700.0,1e-08]
[1758508247490,2.08792364,114710.0,114700.0,1e-08]
[1758508247687,2.39377364,114710.0,114700.0,1e-08]
[1758508247892,1.97252531,114710.0,114700.0,1e-08]
[1758508248091,1.99667531,114710.0,114700.0,1e-08]
[1758508248292,2.41792364,114710.0,114700.0,1e-08]
[1758508248539,2.08792364,114710.0,114700.0,1e-08]
[1758508248756,2.41788364,114710.0,114700.0,1e-08]
[1758508248943,1.99663531,114710.0,114700.0,1e-08]
[1758508249365,2.41788364,114710.0,114700.0,1e-08]
[1758508251141,1.99663531,114710.0,114700.0,1e-08]
[1758508251344,2.41788364,114710.0,114700.0,1e-08]
[1758508253287,1.66667531,114710.0,114700.0,1e-08]
[1758508253501,2.41668364,114710.0,114700.0,1e-08]
[1758508255607,2.46668364,114710.0,114700.0,1e-08]
[1758508256025,2.46057881,114710.0,114700.0,1e-08]
[1758508256231,2.46666978,114710.0,114700.0,1e-08]
[1758508256859,2.10775788,114710.0,114700.0,1e-08]
[1758508257095,2.35920788,114710.0,114700.0,0.00197001]
[1758508257363,2.35920788,114710.0,114700.0,0.02522001]
[1758508257574,2.35920788,114710.0,114700.0,1e-08]
[1758508257575,2.36241788,114710.0,114700.0,1e-08]
[1758508257782,2.31241788,114710.0,114700.0,1e-08]
[1758508257988,1.94116955,114710.0,114700.0,0.00197001]
[1758508258226,2.36241788,114710.0,114700.0,1e-08]
[1758508259786,2.38721788,114710.0,114700.0,1e-08]
[1758508261287,1.93795955,114710.0,114700.0,0.00197001]
[1758508261499,2.36241788,114710.0,114700.0,1e-08]
[1758508262346,1.94116955,114710.0,114700.0,1e-08]
[1758508262762,1.94116955,114710.0,114700.0,0.00197001]
[1758508262976,1.94116955,114710.0,114700.0,1e-08]
[1758508262977,2.36241788,114710.0,114700.0,1e-08]
[1758508263217,2.38721788,114710.0,114700.0,1e-08]
[1758508263854,2.33721788,114710.0,114700.0,1e-08]
[1758508264061,2.38721788,114710.0,114700.0,1e-08]
[1758508264489,7.91493148,114710.0,114700.0,1e-08]
[1758508264695,0.77442874,114660.0,114650.0,0.02325]
[1758508264909,0.77442874,114660.0,114650.0,0.02339134]
[1758508264910,1.10895971,114660.0,114650.0,0.02339134]
[1758508265135,1.10895971,114660.0,114650.0,0.02854134]
[1758508265349,1.10943971,114660.0,114650.0,0.02854134]
[1758508265792,1.12571543,114660.0,114650.0,0.02854134]
[1758508266868,1.54796376,114660.0,114650.0,0.02536134]
[1758508267055,1.5622649,114660.0,114650.0,0.00014134]
[1758508267726,1.5590549,114660.0,114650.0,0.00211134]
[1758508267933,1.13780657,114660.0,114650.0,0.00211134]
[1758508268142,1.5590549,114660.0,114650.0,0.00211134]
[1758508268356,1.8990549,114660.0,114650.0,0.00411134]
[1758508268570,1.14888657,114660.0,114650.0,0.00411134]
[1758508268778,1.47756657,114660.0,114650.0,0.02736134]
[1758508269422,1.50376327,114660.0,114650.0,0.02736134]
[1758508270062,1.51510346,114660.0,114650.0,0.02539134]
[1758508270267,1.51510346,114660.0,114650.0,0.02736134]
[1758508271006,1.48886676,114660.0,114650.0,0.02539134]
[1758508271223,1.51510346,114660.0,114650.0,0.00214134]
[1758508271637,1.96083179,114660.0,114650.0,0.00214134]
[1758508272426,2.26083179,114660.0,114650.0,0.00214134]
[1758508273049,6.6309802,114660.0,114650.0,1e-08]
[1758508273262,6.3023402,114660.0,114650.0,1e-08]
[1758508273727,6.3023402,114660.0,114640.0,0.0002]
[1758508273728,0.17444395,114650.0,114640.0,0.0002]
[1758508273946,0.62618916,114650.0,114640.0,0.0002]
[1758508274137,0.62614689,114650.0,114640.0,0.0002]
[1758508274375,0.98364689,114650.0,114640.0,0.0002]
[1758508275838,0.65584689,114650.0,114640.0,0.0002]
[1758508276057,0.98552689,114650.0,114640.0,0.0002]
[1758508276685,0.65784689,114650.0,114640.0,0.0002]
[1758508276892,0.99240689,114650.0,114640.0,0.0002]
[1758508277313,0.54117856,114650.0,114640.0,0.00223]
[1758508277525,0.54325856,114650.0,114640.0,0.02587]
[1758508277735,0.57087856,114650.0,114640.0,0.0002]
[1758508277942,0.57085605,114650.0,114640.0,0.0002]
[1758508278147,0.56385605,114650.0,114640.0,0.0002]
[1758508278361,0.98510438,114650.0,114640.0,0.0002]
[1758508278569,0.65782438,114650.0,114640.0,0.0002]
[1758508278771,0.98314438,114650.0,114640.0,0.0002]
[1758508278989,0.23457605,114650.0,114640.0,0.0002]
[1758508279166,0.98326438,114650.0,114640.0,0.0002]
[1758508279398,0.23457605,114650.0,114640.0,0.0002]
[1758508279606,0.98714438,114650.0,114640.0,0.0002]
[1758508280014,0.65982438,114650.0,114640.0,0.0002]
[1758508280202,0.64358844,114650.0,114640.0,0.0002]
[1758508280405,0.63532228,114650.0,114640.0,0.0002]
[1758508280617,0.94328844,114650.0,114640.0,0.02587]
[1758508281034,0.19472011,114650.0,114640.0,0.02587]
[1758508281247,0.19264011,114650.0,114640.0,0.0288]
[1758508281661,0.51980011,114650.0,114640.0,0.0288]
[1758508282303,0.19264011,114650.0,114640.0,0.0288]
[1758508282527,0.51980011,114650.0,114640.0,0.0288]
[1758508282739,0.52188011,114650.0,114640.0,0.02587]
[1758508283367,0.51980011,114650.0,114640.0,0.02587]
[1758508283979,0.52188011,114650.0,114640.0,0.02587]
[1758508284830,0.52502011,114650.0,114640.0,0.0002]
[1758508286315,0.54123239,114650.0,114640.0,0.0002]
[1758508286533,0.98696072,114650.0,114640.0,0.0002]
[1758508287432,1.01320055,114650.0,114640.0,0.0002]
[1758508292193,0.59195222,114650.0,114640.0,0.0002]
[1758508292717,1.01320055,114650.0,114640.0,0.0002]
[1758508292840,0.68604055,114650.0,114640.0,0.0002]
[1758508293041,0.26479222,114650.0,114640.0,0.0002]
[1758508293363,1.01040055,114650.0,114640.0,0.0002]
[1758508294429,0.58915222,114650.0,114640.0,0.0002]
[1758508294605,0.99418827,114650.0,114640.0,0.0002]
[1758508294801,1.01045181,114650.0,114640.0,0.0002]
[1758508295506,0.56170348,114650.0,114640.0,0.00234]
[1758508295718,0.88877348,114650.0,114640.0,0.0002]
[1758508296971,0.54037348,114650.0,114640.0,0.0002]
[1758508297158,0.85926348,114650.0,114640.0,0.0302]
[1758508297369,1.28266181,114650.0,114640.0,0.02727]
[1758508297809,1.28581181,114650.0,114640.0,0.00234]
[1758508298015,1.28581181,114650.0,114640.0,0.0002]
[1758508298281,1.31022181,114650.0,114640.0,0.0002]
[1758508298821,0.54044348,114650.0,114640.0,0.0002]
[1758508299121,0.96169181,114650.0,114640.0,0.0002]
[1758508299319,1.28529181,114650.0,114640.0,0.0002]
[1758508299543,0.96169181,114650.0,114640.0,0.0002]
[1758508299778,1.28214181,114650.0,114640.0,0.02727]
[1758508299989,0.86077348,114650.0,114640.0,0.02727]
[1758508300537,0.53729348,114650.0,114640.0,0.02727]
[1758508300856,0.53514348,114650.0,114640.0,0.0302]
[1758508301286,0.85838348,114650.0,114640.0,0.0302]
[1758508301489,1.28493181,114650.0,114640.0,0.02513]
[1758508301692,1.28493181,114650.0,114640.0,0.0002]
[1758508301906,1.30934181,114650.0,114640.0,0.0002]
[1758508302696,1.23114871,114650.0,114640.0,0.0002]
[1758508303153,7.04435584,114650.0,114640.0,0.0002]
[1758508303392,6.70130061,114650.0,114640.0,0.0002]
[1758508304846,6.75130061,114650.0,114640.0,0.0002]
[1758508305057,6.75132816,114650.0,114640.0,0.0002]
[1758508306443,7.1150199,114650.0,114640.0,1e-08]
[1758508307103,6.77196467,114650.0,114640.0,1e-08]
[1758508307804,6.75132816,114650.0,114640.0,1e-08]
[1758508308033,6.77196467,114650.0,114640.0,1e-08]
[1758508308264,0.77448961,114620.0,114610.0,0.00611717]
[1758508308496,1.22148267,114620.0,114610.0,0.00611717]
[1758508308731,1.75081891,114620.0,114610.0,0.03318717]
[1758508308988,1.77706429,114620.0,114610.0,0.03318717]
[1758508309217,1.24987805,114620.0,114610.0,0.03318717]
[1758508309437,1.77706429,114620.0,114610.0,0.03318717]
[1758508309679,1.78421429,114620.0,114610.0,0.00611717]
[1758508309899,1.80862429,114620.0,114610.0,0.00611717]
[1758508310157,1.28143805,114620.0,114610.0,0.00611717]
[1758508310386,1.80862429,114620.0,114610.0,0.00611717]
[1758508310850,0.93486805,114620.0,114610.0,0.00825717]
[1758508311092,1.46205429,114620.0,114610.0,0.03318717]
[1758508311570,1.25626805,114620.0,114610.0,0.03318717]
[1758508311806,1.25307805,114620.0,114610.0,0.03318717]
[1758508312043,1.78018429,114620.0,114610.0,0.03318717]
[1758508312541,1.78333429,114620.0,114610.0,0.03318717]
[1758508312839,1.25614805,114620.0,114610.0,0.03318717]
[1758508313057,1.77998429,114620.0,114610.0,0.03318717]
[1758508313301,1.25279805,114620.0,114610.0,0.03318717]
[1758508313521,1.77998429,114620.0,114610.0,0.03318717]
[1758508313757,1.25279805,114620.0,114610.0,0.03318717]
[1758508313989,1.77994429,114620.0,114610.0,0.03318717]
[1758508314438,1.25275805,114620.0,114610.0,0.03318717]
[1758508314671,0.93171805,114620.0,114610.0,0.03418717]
[1758508314913,0.92956805,114620.0,114610.0,0.03711717]
[1758508315162,1.23409115,114620.0,114610.0,0.03711717]
[1758508315402,0.91329115,114620.0,114610.0,0.03711717]
[1758508315618,1.23409115,114620.0,114610.0,0.30071029]
[1758508315828,0.91329115,114620.0,114610.0,0.03711717]
[1758508316035,0.90518347,114620.0,114610.0,0.30071029]
[1758508316231,1.22618347,114620.0,114610.0,0.30071029]
[1758508316437,1.56618347,114620.0,114610.0,0.30071029]
[1758508316666,1.56618347,114620.0,114610.0,0.03711717]
[1758508316867,1.56618347,114620.0,114610.0,0.30071029]
[1758508317071,1.56618347,114620.0,114610.0,0.38597996]
[1758508317272,1.56618347,114620.0,114610.0,0.30071029]
[1758508317485,1.56618347,114620.0,114610.0,0.03711717]
[1758508317681,1.56218347,114620.0,114610.0,0.03711717]
[1758508317923,1.56218347,114620.0,114610.0,0.04011717]
[1758508318127,1.56218347,114620.0,114610.0,0.30371029]
[1758508318325,1.24118347,114620.0,114610.0,0.30371029]
[1758508318533,1.56202347,114620.0,114610.0,0.30371029]
[1758508318742,1.56202347,114620.0,114610.0,0.04011717]
[1758508318965,1.56202347,114620.0,114610.0,0.30371029]
[1758508319164,1.56202347,114620.0,114610.0,0.0383948]
[1758508319364,1.56202347,114620.0,114610.0,0.30198792]
[1758508319560,1.56190347,114620.0,114610.0,0.38625759]
[1758508319774,1.56190347,114620.0,114610.0,0.0373948]
[1758508319981,1.56190347,114620.0,114610.0,0.30098792]
[1758508320185,1.56190925,114620.0,114610.0,0.30098792]
[1758508320399,1.56800343,114620.0,114610.0,0.30098792]
[1758508320800,1.56800343,114620.0,114610.0,0.0373948]
[1758508321421,1.56800343,114620.0,114610.0,0.0073948]
[1758508321422,1.83665655,114620.0,114610.0,0.0073948]
[1758508321842,1.85957655,114620.0,114610.0,0.0073948]
[1758508322695,2.12316967,114620.0,114610.0,0.0103948]
[1758508322930,2.1231703,114620.0,114610.0,0.0103948]
[1758508323317,1.57306406,114620.0,114610.0,0.0103948]
[1758508323535,2.1231703,114620.0,114610.0,0.0103948]
[1758508323758,2.1231703,114620.0,114610.0,0.0093948]
[1758508323980,2.1231703,114620.0,114610.0,0.0073948]
[1758508324475,2.5007303,114620.0,114610.0,0.0073948]
[1758508324710,2.76632342,114620.0,114610.0,0.0073948]
[1758508324929,2.84647532,114620.0,114610.0,0.0073948]
[1758508325159,2.54100855,114620.0,114610.0,0.0073948]
[1758508325396,2.60525865,114620.0,114610.0,0.0073948]
[1758508325866,2.61025865,114620.0,114610.0,0.0073948]
[1758508326353,2.85760167,114620.0,114610.0,0.0073948]
[1758508326625,2.08307071,114620.0,114610.0,0.0073948]
[1758508326905,2.61025695,114620.0,114610.0,0.0073948]
[1758508327137,2.61225695,114620.0,114610.0,0.0073948]
[1758508327359,2.61289695,114620.0,114610.0,0.0073948]
[1758508327570,2.59664855,114620.0,114610.0,0.0073948]
[1758508327782,2.61289571,114620.0,114610.0,0.0073948]
[1758508328234,2.92648883,114620.0,114610.0,0.0073948]
[1758508329100,3.23238933,114620.0,114610.0,0.0073948]
[1758508329560,2.44160997,114620.0,114610.0,0.0073948]
[1758508329976,2.96875621,114620.0,114610.0,0.0073948]
[1758508330187,2.44156997,114620.0,114610.0,0.0073948]
[1758508330422,2.96875473,114620.0,114610.0,0.0073948]
[1758508330636,2.96879473,114620.0,114610.0,0.0073948]
[1758508330832,2.91102785,114620.0,114610.0,0.0073948]
[1758508331069,2.96879473,114620.0,114610.0,0.0073948]
[1758508331272,3.23238785,114620.0,114610.0,0.0073948]
[1758508331477,1.08184298,114610.0,114600.0,9.10646518]
[1758508331687,7.11596593,114610.0,114600.0,9.10693518]
[1758508332118,7.16596647,114610.0,114600.0,8.6881909]
[1758508332321,7.16596647,114610.0,114600.0,8.59370439]
[1758508332524,7.16596647,114610.0,114600.0,8.43727462]
[1758508333153,7.16596647,114610.0,114600.0,7.9596171]
[1758508333390,7.93335583,114610.0,114600.0,7.60023235]
[1758508333600,8.04736062,114610.0,114600.0,6.68114995]
[1758508333815,6.1444419,114610.0,114600.0,6.57935116]
[1758508334022,6.89460647,114610.0,114600.0,6.47980063]
[1758508334203,6.89460647,114610.0,114600.0,6.23392036]
[1758508334204,7.21644647,114610.0,114600.0,6.23392036]
[1758508334465,8.00722583,114610.0,114600.0,6.05938963]
[1758508334640,7.11305795,114610.0,114600.0,5.88718188]
[1758508334815,7.12005795,114610.0,114600.0,5.64480096]
[1758508335016,7.13505795,114610.0,114600.0,5.50800139]
[1758508335241,6.12582711,114610.0,114600.0,5.44162362]
[1758508335414,7.13537795,114610.0,114600.0,5.18919892]
[1758508335619,7.14906478,114610.0,114600.0,4.9633156]
[1758508335842,7.14906478,114610.0,114600.0,4.80719172]
[1758508336045,7.14906478,114610.0,114600.0,4.73565694]
[1758508336254,7.14906478,114610.0,114600.0,4.41589722]
[1758508336581,7.14906478,114610.0,114600.0,4.0776676]
[1758508336797,7.3396241,114610.0,114600.0,3.581131]
[1758508337012,7.35959957,114610.0,114600.0,2.72033546]
[1758508337218,2.30959957,114610.0,114600.0,2.72033546]
[1758508337432,2.30959957,114610.0,114600.0,2.5340775]
[1758508337433,7.05486696,114610.0,114600.0,2.5340775]
[1758508337644,7.05830709,114610.0,114600.0,2.18460127]
[1758508337848,6.64343339,114610.0,114600.0,1.79086962]
[1758508338069,7.3804797,114610.0,114600.0,1.73973697]
[1758508338300,7.39122709,114610.0,114600.0,1.68701186]
[1758508338493,7.36122709,114610.0,114600.0,1.07438018]
[1758508338700,7.36122709,114610.0,114600.0,0.88403313]
[1758508338904,7.70476251,114610.0,114600.0,0.01158257]
[1758508339118,1.29849244,114560.0,114500.0,0.19065723]
[1758508339325,7.82683215,114560.0,114550.0,0.00034113]
[1758508339534,8.14906757,114560.0,114550.0,0.00034113]
[1758508339945,7.4791922,114560.0,114550.0,0.00034113]
[1758508340163,7.49644762,114560.0,114550.0,0.00034113]
[1758508340379,7.82340762,114560.0,114550.0,1e-08]
[1758508340611,8.19404694,114560.0,114550.0,1e-08]
[1758508340857,7.85051152,114560.0,114550.0,1e-08]
[1758508341063,8.133354,114560.0,114550.0,1e-08]
[1758508341280,7.83981858,114560.0,114550.0,1e-08]
[1758508341737,1.54476338,114540.0,114530.0,0.0002]
[1758508341979,7.27479239,114540.0,114530.0,0.00124706]
[1758508342236,0.64477863,114530.0,114520.0,0.0002]
[1758508342435,6.14880402,114530.0,114520.0,0.00024704]
[1758508342648,1.54479388,114520.0,114510.0,0.0002]
[1758508342850,6.9548551,114520.0,114510.0,0.0002]
[1758508343064,6.9601651,114520.0,114510.0,1e-08]
[1758508343260,6.95208108,114520.0,114510.0,1e-08]
[1758508343689,7.30366775,114520.0,114510.0,1e-08]
[1758508343909,1.46468774,114490.0,114480.0,0.00217604]
[1758508344115,1.46468774,114490.0,114470.0,0.24482535]
[1758508344116,0.6448549,114480.0,114470.0,0.24482535]
[1758508344320,0.67242627,114480.0,114470.0,0.24148407]
[1758508344533,2.58647016,114470.0,114460.0,0.0851]
[1758508344741,6.95676537,114470.0,114460.0,0.08477675]
[1758508344953,7.69383621,114470.0,114460.0,0.06077675]
[1758508345159,8.02835621,114470.0,114460.0,0.06077675]
[1758508345368,7.0550543,114470.0,114460.0,0.06077675]
[1758508345610,7.3574943,114470.0,114460.0,0.05723102]
[1758508345802,7.38378673,114470.0,114460.0,0.05723102]
[1758508346022,7.39036215,114470.0,114460.0,0.05723102]
[1758508346227,7.38782673,114470.0,114460.0,0.05723102]
[1758508346436,7.38782673,114470.0,114460.0,0.05507102]
[1758508346653,7.38782673,114470.0,114460.0,0.05607102]
[1758508346654,6.41372673,114470.0,114460.0,0.05607102]
[1758508346872,6.70332847,114470.0,114460.0,0.05707102]
[1758508347113,6.93104673,114470.0,114460.0,0.04705961]
[1758508347320,6.65361483,114470.0,114460.0,0.05005961]
[1758508347536,6.0347224,114470.0,114460.0,0.05215961]
[1758508347750,7.60604414,114470.0,114460.0,0.05310961]
[1758508347977,2.26816414,114470.0,114460.0,0.07406961]
[1758508348193,3.19600978,114470.0,114460.0,0.04805961]
[1758508348476,2.58324163,114470.0,114460.0,0.04805961]
[1758508348691,2.58324163,114470.0,114460.0,0.07701961]
[1758508348692,2.67972337,114470.0,114460.0,0.07701961]
[1758508349110,2.68272337,114470.0,114460.0,0.07801961]
[1758508349322,1.83980337,114470.0,114460.0,0.42205503]
[1758508349552,1.83980337,114470.0,114460.0,0.07751961]
[1758508349553,1.76709255,114470.0,114460.0,0.07751961]
[1758508349785,1.41107466,114470.0,114460.0,0.59578856]
[1758508350013,1.10373036,114470.0,114460.0,0.25925314]
[1758508350248,1.10373036,114470.0,114460.0,0.25525314]
[1758508350464,0.50014082,114470.0,114460.0,0.3281996]
[1758508350687,0.50014082,114470.0,114460.0,0.62994046]
[1758508350895,0.50114082,114470.0,114460.0,0.62894046]
[1758508351333,0.50214082,114470.0,114460.0,0.12167151]
[1758508351545,0.50214082,114470.0,114460.0,0.65741381]